bitfinex-derivatives/quotes_SOLF0:USTF0_20250821
["timestamp","ask_amount","ask_price","bid_price","bid_amount"]
[1755809226565,2.99,180.42,180.39,6.82925599]
[1755809226765,2.99,180.46,180.37,3.86925599]
[1755809227072,3.86925599,180.47,180.37,3.86925599]
[1755809227073,2.99,180.44,180.37,3.86925599]
[1755809227366,2.99,180.41,180.37,3.86925599]
[1755809227560,3.86925599,180.47,180.37,3.86925599]
[1755809227759,2.99,180.42,180.38,2.96]
[1755809227960,2.99,180.41,180.38,2.96]
[1755809228866,2.99,180.46,180.3,2.96]
[1755809229061,2.99,180.44,180.35,3.86925599]
[1755809229259,2.99,180.42,180.35,3.86925599]
[1755809229458,3.90425498,180.41,180.35,3.86925599]
[1755809229662,3.90425498,180.4,180.35,3.86925599]
[1755809229871,2.99,180.39,180.35,6.82925599]
[1755809230769,2.99,180.37,180.32,3.86925599]
[1755809230969,2.99,180.42,180.32,3.86925599]
[1755809231169,2.99,180.4,180.32,9.41605599]
[1755809231360,3.90485305,180.39,180.32,3.86925599]
[1755809231564,3.90485305,180.38,180.32,3.86925599]
[1755809231867,2.99,180.4,180.32,3.86925599]
[1755809232069,3.90498504,180.39,180.32,3.86925599]
[1755809232269,3.90498504,180.38,180.32,3.86925599]
[1755809232463,3.90477785,180.37,180.31,2.96]
[1755809232664,2.99,180.35,180.28,6.82925599]
[1755809232871,3.90552778,180.34,180.28,6.82925599]
[1755809233067,2.99,180.35,180.28,6.82925599]
[1755809233268,3.90553096,180.34,180.28,6.82925599]
[1755809233576,2.99,180.32,180.28,2.96]
[1755809234772,2.99,180.36,180.28,2.96]
[1755809234968,3.9023286,180.35,180.28,2.96]
[1755809235171,3.86925599,180.37,180.28,6.82925599]
[1755809235172,6.8923286,180.34,180.28,6.82925599]
[1755809235375,2.99,180.37,180.3,6.82925599]
[1755809235574,3.90065614,180.36,180.3,6.82925599]
[1755809235880,2.99,180.37,180.3,6.82925599]
[1755809236073,3.90029153,180.36,180.3,6.82925599]
[1755809236272,2.99,180.37,180.3,6.82925599]
[1755809236479,3.8995476,180.36,180.3,12.37665599]
[1755809236773,2.99,180.37,180.3,12.37665599]
[1755809236972,3.8995476,180.36,180.3,6.82925599]
[1755809237175,2.99,180.37,180.3,6.82925599]
[1755809237368,3.89877127,180.36,180.3,6.82925599]
[1755809237565,2.99,180.37,180.3,6.82925599]
[1755809237768,3.89877127,180.36,180.3,6.82925599]
[1755809237974,2.99,180.37,180.3,6.82925599]
[1755809238164,2.99,180.35,180.3,6.82925599]
[1755809238369,2.99,180.34,180.3,2.96]
[1755809238572,2.99,180.38,180.28,3.86925599]
[1755809238775,2.99,180.36,180.28,3.86925599]
[1755809239077,11.81652006,180.37,180.28,3.86925599]
[1755809239078,2.99,180.34,180.28,3.86925599]
[1755809240471,2.99,180.34,180.27,379.50925599]
[1755809240980,2.99,180.34,180.27,385.05765599]
[1755809242575,2.99,180.34,180.27,379.50925599]
[1755809243677,2.99,180.34,180.27,375.64]
[1755809243880,3.89270803,180.33,180.25,3.86925599]
[1755809244073,6.97303114,180.32,180.25,140.42925599]
[1755809244268,3.08,180.32,180.25,140.42925599]
[1755809245381,3.08,180.32,180.26,3.02]
[1755809245980,6.94925599,180.35,180.26,3.02]
[1755809246484,6.94925599,180.35,180.26,5.5487]
[1755809246676,6.94925599,180.35,180.27,3.02]
[1755809246871,3.86925599,180.35,180.27,3.02]
[1755809247076,3.08,180.34,180.27,3.02]
[1755809247476,3.08,180.34,180.25,140.42925599]
[1755809248276,3.08,180.34,180.26,3.02]
[1755809249781,3.08,180.34,180.25,140.42925599]
[1755809249987,3.08,180.34,180.27,3.02]
[1755809250580,3.08,180.34,180.27,12.43755599]
[1755809250779,3.86925599,180.37,180.28,3.02]
[1755809250978,3.08,180.38,180.3,3.02]
[1755809252882,3.08,180.38,180.3,8.5675]
[1755809253480,3.08,180.38,180.3,3.02]
[1755809257684,3.08,180.35,180.27,3.02]
[1755809258389,3.08,180.35,180.29,3.86925599]
[1755809258590,6.94925599,180.38,180.3,3.02]
[1755809260981,3.86925599,180.38,180.3,3.02]
[1755809261186,3.08,180.37,180.3,3.02]
[1755809262288,3.08,180.35,180.27,3.02]
[1755809262483,3.86925599,180.34,180.27,3.02]
[1755809262884,3.08,180.33,180.27,3.02]
[1755809268792,3.86925599,180.36,180.27,3.02]
[1755809268997,3.08,180.36,180.28,3.86925599]
[1755809269294,3.08,180.36,180.29,3.02]
[1755809270093,3.08,180.36,180.32,3.02]
[1755809270294,3.08,180.36,180.33,3.02]
[1755809270496,3.08,180.36,180.3,3.86925599]
[1755809270696,3.08,180.36,180.3,6.88925599]
[1755809270892,3.08,180.36,180.3,3.02]
[1755809272198,3.08,180.39,180.31,3.02]
[1755809275299,9.29060666,180.39,180.31,3.02]
[1755809280203,6.21060666,180.39,180.31,3.02]
[1755809280402,2.91,180.38,180.31,3.02]
[1755809284405,3.86925599,180.38,180.28,3.86925599]
[1755809284602,2.91,180.35,180.28,2.8]
[1755809285902,2.91,180.35,180.26,3.86925599]
[1755809289211,9.12060666,180.35,180.26,3.86925599]
[1755809289510,2.91,180.34,180.26,3.86925599]
[1755809292012,2.91,180.33,180.25,2.8]
[1755809292213,2.91,180.32,180.25,2.8]
[1755809294115,6.77925599,180.32,180.25,2.8]
[1755809294305,2.91,180.31,180.22,147.38008181]
[1755809294505,2.91,180.29,180.22,146.31082582]
[1755809295413,2.91,180.29,180.23,2.8]
[1755809295614,3.86925599,180.32,180.23,2.8]
[1755809295809,9.12060666,180.33,180.24,3.86925599]
[1755809296014,9.12060666,180.33,180.25,2.8]
[1755809296207,2.91,180.33,180.26,3.86925599]
[1755809296412,2.91,180.33,180.27,2.8]
[1755809303920,13.11986265,180.36,180.27,6.66925599]
[1755809304117,3.04,180.36,180.3,3.05]
[1755809305220,3.04,180.39,180.31,3.86925599]
[1755809305425,3.04,180.39,180.32,3.05]
[1755809306122,9.25060666,180.39,180.32,3.05]
[1755809306328,3.04,180.38,180.32,3.05]
[1755809310923,3.86925599,180.36,180.29,3.05]
[1755809311129,3.04,180.35,180.26,3.05]
[1755809311524,3.04,180.35,180.27,3.86925599]
[1755809311725,3.04,180.35,180.28,3.05]
[1755809315333,9.25060666,180.38,180.31,3.86925599]
[1755809315525,9.25060666,180.38,180.32,3.05]
[1755809315526,3.04,180.38,180.32,3.05]
[1755809316531,6.21060666,180.41,180.32,3.05]
[1755809316831,3.04,180.41,180.33,3.86925599]
[1755809317034,3.04,180.41,180.34,3.05]
[1755809317329,3.04,180.41,180.33,5.5465]
[1755809317534,3.04,180.41,180.38,3.05]
[1755809319635,3.04,180.45,180.36,3.86925599]
[1755809319836,3.04,180.43,180.36,3.86925599]
[1755809320434,3.04,180.43,180.35,3.05]
[1755809320939,3.86925599,180.42,180.35,3.05]
[1755809321138,3.04,180.41,180.35,3.05]
[1755809322934,3.04,180.44,180.35,3.05]
[1755809325641,3.04,180.44,180.36,3.86925599]
[1755809325836,3.04,180.44,180.37,3.05]
[1755809339249,3.02,180.42,180.34,2.84]
[1755809339544,3.02,180.42,180.34,6.70925599]
[1755809339745,3.02,180.42,180.35,2.84]
[1755809340148,3.02,180.42,180.35,8.3857]
[1755809340448,3.02,180.42,180.37,2.84]
[1755809340648,3.02,180.42,180.36,3.86925599]
[1755809341150,3.02,180.45,180.36,6.70925599]
[1755809341849,3.02,180.45,180.36,2.84]
[1755809342346,3.02,180.43,180.36,2.84]
[1755809344552,3.02,180.41,180.33,2.84]
[1755809344751,3.02,180.39,180.33,2.84]
[1755809344952,3.86925599,180.38,180.3,2.84]
[1755809345149,6.88925599,180.38,180.3,2.84]
[1755809345349,3.02,180.38,180.3,2.84]
[1755809345548,3.02,180.41,180.33,2.84]
[1755809348546,3.86925599,180.4,180.33,2.84]
[1755809348753,3.02,180.37,180.3,2.84]
[1755809351758,3.86925599,180.36,180.26,3.86925599]
[1755809351962,3.02,180.35,180.27,2.84]
[1755809352156,3.02,180.35,180.27,8.3884]
[1755809352856,3.02,180.35,180.29,2.84]
[1755809356359,3.02,180.33,180.25,2.84]
[1755809356563,3.02,180.31,180.25,2.84]
[1755809358059,3.86925599,180.33,180.25,2.84]
[1755809358565,3.02,180.32,180.25,2.84]
[1755809359058,3.86925599,180.33,180.25,2.84]
[1755809359259,6.88925599,180.35,180.25,2.84]
[1755809359460,3.02,180.35,180.25,2.84]
[1755809359662,3.02,180.35,180.27,2.84]
[1755809360262,3.02,180.35,180.28,2.84]
[1755809361568,3.02,180.35,180.29,2.84]
[1755809365071,2.93,180.33,180.26,3.0]
[1755809367569,6.79925599,180.36,180.27,3.86925599]
[1755809367766,6.79925599,180.36,180.28,3.0]
[1755809368671,2.93,180.35,180.28,3.0]
[1755809373977,2.93,180.33,180.25,3.0]
[1755809374877,3.86925599,180.32,180.25,3.0]
[1755809375073,2.93,180.31,180.25,3.0]
[1755809375777,2.93,180.34,180.27,3.86925599]
[1755809376080,2.93,180.37,180.29,3.86925599]
[1755809376279,2.93,180.37,180.3,3.0]
[1755809379582,3.86925599,180.36,180.27,3.0]
[1755809379781,2.93,180.35,180.27,3.0]
[1755809380377,3.86925599,180.34,180.27,3.0]
[1755809380576,2.93,180.33,180.27,3.0]
[1755809382072,2.93,180.33,180.23,6.86925599]
[1755809382673,6.21060666,180.36,180.23,3.0]
[1755809382674,3.86925599,180.32,180.23,3.0]
[1755809382874,2.93,180.31,180.23,3.0]
[1755809384984,2.93,180.31,180.24,3.0]
[1755809385286,2.93,180.34,180.26,3.0]
[1755809385585,2.93,180.34,180.28,3.0]
[1755809385788,2.93,180.34,180.18,10.06246545]
[1755809385789,2.93,180.34,180.24,3.86925599]
[1755809386082,2.93,180.34,180.25,3.0]
[1755809386983,2.93,180.34,180.27,3.0]
[1755809392988,9.22060666,180.42,180.34,2.84]
[1755809393183,3.01,180.46,180.39,2.84]
[1755809393895,3.01,180.46,180.4,8.87680734]
[1755809394087,3.01,180.46,180.41,5.00755135]
[1755809394282,3.01,180.46,180.4,3.86925599]
[1755809394283,3.86925599,180.5,180.42,7.84755135]
[1755809394482,3.01,180.45,180.43,5.00755135]
[1755809394687,3.01,180.45,180.44,5.00755135]
[1755809395291,3.01,180.49,180.44,5.00755135]
[1755809395494,3.01,180.48,180.45,4.99825985]
[1755809395687,3.86925599,180.5,180.39,6.70925599]
[1755809395688,3.86925599,180.5,180.46,4.99825985]
[1755809395889,3.01,180.47,180.4,2.84]
[1755809396091,3.01,180.47,180.41,4.99763203]
[1755809396287,3.01,180.5,180.43,2.84]
[1755809396591,3.01,180.5,180.44,4.99763203]
[1755809396791,3.01,180.49,180.45,4.99763203]
[1755809397089,3.01,180.48,180.46,4.99763203]
[1755809397296,3.01,180.48,180.47,4.99763203]
[1755809398692,3.01,180.48,180.47,4.98706481]
[1755809400591,3.01,180.48,180.39,6.70925599]
[1755809400794,3.01,180.48,180.4,4.98343078]
[1755809400996,3.01,180.48,180.41,4.98343078]
[1755809401197,3.01,180.48,180.42,7.82343078]
[1755809401395,3.01,180.48,180.43,7.82343078]
[1755809401593,3.01,180.48,180.44,4.98343078]
[1755809401799,3.01,180.48,180.45,4.98343078]
[1755809401998,3.01,180.48,180.46,4.98343078]
[1755809402196,3.01,180.48,180.47,4.98343078]
[1755809402898,3.01,180.48,180.44,2.84]
[1755809403101,3.01,180.48,180.41,3.86925599]
[1755809403102,6.87925599,180.52,180.45,7.81768028]
[1755809403397,6.87925599,180.52,180.46,4.97768028]
[1755809403597,3.01,180.51,180.47,4.97768028]
[1755809403898,3.01,180.51,180.45,2.84]
[1755809404097,3.01,180.5,180.46,4.97376648]
[1755809404401,3.01,180.49,180.45,2.84]
[1755809404591,3.01,180.49,180.46,4.97160169]
[1755809404795,3.01,180.49,180.47,4.97122436]
[1755809404995,3.01,180.49,180.45,2.84]
[1755809405297,3.01,180.47,180.4,2.84]
[1755809405504,3.01,180.47,180.41,4.97146076]
[1755809405696,3.01,180.46,180.42,4.97146076]
[1755809405896,3.86925599,180.48,180.43,4.97146076]
[1755809406096,3.01,180.46,180.4,2.84]
[1755809406300,3.86925599,180.48,180.42,2.84]
[1755809406499,3.86925599,180.48,180.43,4.971233]
[1755809406500,3.01,180.46,180.43,4.971233]
[1755809406694,3.01,180.46,180.39,2.84]
[1755809406895,3.01,180.46,180.4,4.971233]
[1755809407096,3.01,180.45,180.41,7.811233]
[1755809407298,3.01,180.45,180.42,7.811233]
[1755809407596,3.01,180.47,180.43,7.811233]
[1755809407898,3.01,180.47,180.44,4.971233]
[1755809408098,3.01,180.47,180.43,2.84]
[1755809408099,3.01,180.46,180.43,2.84]
[1755809408491,3.01,180.46,180.4,2.84]
[1755809408695,3.01,180.46,180.41,4.96946353]
[1755809408901,3.01,180.46,180.43,2.84]
[1755809409803,3.01,180.46,180.4,2.84]
[1755809409997,3.01,180.46,180.42,2.84]
[1755809410305,6.87925599,180.5,180.44,2.84]
[1755809410902,6.87925599,180.5,180.45,4.9679822]
[1755809411099,3.01,180.49,180.46,4.9679822]
[1755809411402,3.01,180.49,180.45,2.84]
[1755809411603,3.01,180.49,180.46,4.96685276]
[1755809411804,3.01,180.49,180.45,2.84]
[1755809412000,3.01,180.49,180.46,4.96685276]
[1755809412201,3.01,180.49,180.45,2.84]
[1755809412402,3.01,180.48,180.45,2.84]
[1755809413106,3.01,180.48,180.46,4.96669537]
[1755809413305,3.01,180.48,180.45,2.84]
[1755809413605,3.01,180.48,180.46,4.96644133]
[1755809413905,3.01,180.49,180.41,6.70925599]
[1755809414103,3.01,180.49,180.42,4.96734424]
[1755809414296,3.01,180.49,180.43,7.80734424]
[1755809414495,3.01,180.49,180.45,2.84]
[1755809414898,3.01,180.48,180.42,2.84]
[1755809415095,3.01,180.47,180.43,4.96730083]
[1755809415302,3.01,180.46,180.44,4.96730083]
[1755809415610,3.01,180.46,180.43,2.84]
[1755809415903,3.01,180.46,180.44,4.96753755]
[1755809416104,3.01,180.46,180.43,2.84]
[1755809416304,3.01,180.46,180.44,4.96749695]
[1755809416501,3.01,180.46,180.43,2.84]
[1755809416804,3.01,180.46,180.44,4.96624546]
[1755809417003,3.01,180.49,180.39,2.84]
[1755809417305,3.01,180.47,180.4,4.96692369]
[1755809417502,3.01,180.47,180.41,7.80692369]
[1755809417707,3.01,180.47,180.42,4.96692369]
[1755809418004,3.01,180.47,180.43,7.80692369]
[1755809418206,3.86925599,180.48,180.43,2.84]
[1755809418407,3.01,180.48,180.44,7.82944785]
[1755809418607,3.01,180.48,180.44,2.84]
[1755809418905,3.01,180.47,180.44,2.84]
[1755809419803,3.86925599,180.5,180.4,3.86925599]
[1755809420108,3.86925599,180.5,180.45,2.84]
[1755809420109,3.01,180.48,180.45,2.84]
[1755809420907,3.01,180.51,180.45,2.84]
[1755809421106,3.01,180.51,180.46,4.99323987]
[1755809421303,3.01,180.51,180.45,2.84]
[1755809421510,3.86925599,180.52,180.46,4.99327029]
[1755809421708,3.01,180.48,180.45,2.84]
[1755809421907,3.01,180.48,180.46,4.99327558]
[1755809422204,3.01,180.48,180.45,2.84]
[1755809422414,3.01,180.48,180.46,4.99304166]
[1755809422708,3.01,180.48,180.45,2.84]
[1755809422908,3.01,180.48,180.46,4.99419769]
[1755809423108,3.01,180.48,180.45,2.84]
[1755809423309,3.01,180.48,180.46,4.99436817]
[1755809423511,3.01,180.48,180.45,2.84]
[1755809423712,3.01,180.48,180.46,4.99436817]
[1755809423914,3.01,180.48,180.45,2.84]
[1755809424111,3.01,180.48,180.46,4.99436817]
[1755809424313,3.01,180.48,180.43,3.01]
[1755809424512,3.01,180.48,180.44,4.99338934]
[1755809424713,3.01,180.48,180.45,8.00338934]
[1755809424914,3.01,180.48,180.46,4.99338934]
[1755809425220,3.01,180.48,180.45,3.01]
[1755809425409,3.01,180.48,180.46,4.99445459]
[1755809425706,3.01,180.48,180.45,3.01]
[1755809425911,3.01,180.48,180.46,4.99445459]
[1755809426212,3.01,180.48,180.45,3.01]
[1755809426413,3.01,180.48,180.46,4.99581288]
[1755809426615,2.81,180.51,180.48,3.01]
[1755809428019,2.81,180.51,180.36,147.53803876]
[1755809428020,2.81,180.54,180.49,4.9957071]
[1755809428211,2.81,180.54,180.5,4.99738877]
[1755809428411,2.81,180.54,180.46,9.41185599]
[1755809428711,2.81,180.53,180.48,3.01]
[1755809428908,136.02,180.55,180.49,4.99663069]
[1755809429106,136.02,180.55,180.5,4.99663069]
[1755809429309,2.81,180.52,180.51,4.99663069]
[1755809430523,6.67925599,180.52,180.44,3.01]
[1755809430724,6.67925599,180.52,180.45,5.0019742]
[1755809431025,2.81,180.52,180.46,8.0119742]
[1755809431222,2.81,180.52,180.48,3.01]
[1755809431427,2.81,180.52,180.49,5.00480549]
[1755809431725,2.81,180.52,180.5,5.00480549]
[1755809431926,2.81,180.51,180.45,3.01]
[1755809432122,2.81,180.51,180.47,3.01]
[1755809432322,2.81,180.51,180.48,5.00684958]
[1755809432515,2.81,180.51,180.49,5.00684958]
[1755809432722,6.67925599,180.54,180.5,8.01684958]
[1755809432925,6.67925599,180.54,180.51,8.01684958]
[1755809433123,6.67925599,180.54,180.52,5.01232703]
[1755809433320,6.67925599,180.54,180.51,3.01]
[1755809433526,6.67925599,180.54,180.52,5.01232703]
[1755809433725,6.67925599,180.54,180.51,3.01]
[1755809433925,6.67925599,180.54,180.52,5.01232703]
[1755809434129,6.67925599,180.54,180.51,3.01]
[1755809434331,6.67925599,180.54,180.52,5.01602073]
[1755809434527,6.67925599,180.54,180.53,5.01476192]
[1755809436632,3.86925599,180.54,180.53,5.01476192]
[1755809436836,148.86986265,180.56,180.53,5.01476192]
[1755809437133,6.21060666,180.55,180.54,5.01476192]
[1755809437434,6.21060666,180.56,180.54,8.02476192]
[1755809437634,2.81,180.57,180.55,5.01476192]
[1755809437833,2.81,180.57,180.56,5.01476192]
[1755809438334,9.02060666,180.57,180.56,5.01476192]
[1755809439825,2.81,180.57,180.56,5.01476192]
[1755809440628,2.81,180.57,180.51,3.01]
[1755809440829,9.02143778,180.56,180.52,8.03697236]
[1755809441029,9.02143778,180.56,180.53,5.02697236]
[1755809441230,12.89069377,180.56,180.54,5.02697236]
[1755809441430,12.89069377,180.56,180.55,5.02697236]
[1755809442131,6.67925599,180.56,180.55,5.02697236]
[1755809443030,12.89069377,180.56,180.55,5.02697236]
[1755809443235,6.67925599,180.56,180.55,5.02697236]
[1755809448744,6.67925599,180.56,180.55,5.03285697]
[1755809449632,10.08069377,180.58,180.55,8.04285697]
[1755809449834,10.08069377,180.58,180.56,5.03285697]
[1755809450037,10.08069377,180.58,180.55,3.01]
[1755809450235,2.81,180.57,180.56,5.03140371]
[1755809450434,2.81,180.57,180.52,3.01]
[1755809450640,2.81,180.57,180.53,8.04127458]
[1755809450843,10.08069377,180.58,180.54,5.03127458]
[1755809451043,10.08069377,180.58,180.53,3.01]
[1755809451044,2.81,180.56,180.55,5.03127458]
[1755809452240,6.21143778,180.59,180.56,3.01]
[1755809452444,6.67925599,180.59,180.57,5.03127458]
[1755809452643,6.67925599,180.59,180.58,5.03127458]
[1755809452843,6.67925599,180.59,180.53,3.01]
[1755809453041,2.86,180.58,180.54,7.83997509]
[1755809453239,2.86,180.58,180.55,5.02940687]
[1755809453543,2.86,180.58,180.56,5.02940687]
[1755809453744,2.86,180.58,180.57,5.02940687]
[1755809459353,2.86,180.58,180.57,5.02561719]
[1755809459752,2.86,180.58,180.54,2.81]
[1755809459753,2.86,180.58,180.51,2.81]
[1755809459950,3.86925599,180.57,180.53,2.81]
[1755809460255,135.88,180.56,180.55,2.81]
[1755809460454,135.88,180.57,180.56,2.81]
[1755809460850,139.74925599,180.57,180.49,2.81]
[1755809461250,139.74925599,180.57,180.5,2.81]
[1755809461653,3.86925599,180.57,180.5,2.81]
[1755809461854,3.86925599,180.57,180.51,2.81]
[1755809462754,135.88,180.58,180.51,2.81]
[1755809462954,135.88,180.58,180.51,8.351]
[1755809463149,135.88,180.58,180.49,2.81]
[1755809463550,135.88,180.58,180.5,5.5412]
[1755809463747,135.88,180.58,180.51,2.81]
[1755809468158,135.88,180.58,180.52,2.81]
[1755809468559,9.07143778,180.61,180.52,5.5405]
[1755809468857,144.93143778,180.61,180.53,2.81]
[1755809469058,144.93143778,180.61,180.54,2.81]
[1755809469260,138.72,180.61,180.54,2.81]
[1755809469459,2.86,180.6,180.54,2.81]
[1755809471861,2.86,180.6,180.55,4.9346998]
[1755809472055,135.86,180.61,180.56,4.9346998]
[1755809472253,2.86,180.58,180.57,4.9346998]
[1755809473963,2.86,180.6,180.57,4.9346998]
[1755809474159,2.86,180.59,180.58,4.9346998]
[1755809475663,135.86,180.61,180.58,4.9346998]
[1755809475864,138.72,180.61,180.59,4.9346998]
[1755809476164,138.72,180.61,180.6,4.9346998]
[1755809476765,2.86,180.6,180.57,2.81]
[1755809476960,2.86,180.6,180.58,4.93758095]
[1755809477161,2.86,180.6,180.59,4.93758095]
[1755809479861,135.86,180.61,180.59,4.93758095]
[1755809480163,138.72,180.61,180.6,4.93758095]
[1755809483466,138.82,180.61,180.6,4.93758095]
[1755809483667,135.86,180.61,180.6,7.76758095]
[1755809483861,135.8,180.63,180.6,4.93758095]
[1755809484064,135.8,180.63,180.61,7.76758095]
[1755809484264,135.8,180.63,180.62,4.93758095]
[1755809484664,2.96,180.65,180.62,7.76758095]
[1755809484860,6.21143778,180.67,180.63,7.76758095]
[1755809485073,142.01143778,180.67,180.64,4.93758095]
[1755809485268,142.01143778,180.67,180.57,3.86925599]
[1755809485269,142.01143778,180.67,180.65,4.96253287]
[1755809485466,135.8,180.67,180.61,2.83]
[1755809485670,135.8,180.67,180.62,4.96067251]
[1755809485971,2.96,180.65,180.57,3.86925599]
[1755809486160,2.96,180.64,180.6,2.83]
[1755809486361,2.96,180.64,180.61,4.9606725]
[1755809486572,2.96,180.64,180.62,4.95896927]
[1755809486773,2.96,180.66,180.63,4.95896927]
[1755809486970,2.96,180.66,180.64,4.95896927]
[1755809487170,2.96,180.66,180.65,4.95896927]
[1755809487576,138.76,180.66,180.65,4.95896927]
[1755809488381,135.8,180.68,180.65,7.78896927]
[1755809488582,135.8,180.68,180.66,4.95896927]
[1755809488783,135.8,180.68,180.65,2.83]
[1755809488984,135.8,180.68,180.66,4.95479154]
[1755809489172,135.8,180.68,180.65,2.83]
[1755809489479,135.8,180.68,180.66,4.9553634]
[1755809489777,135.78,180.69,180.62,2.83]
[1755809489979,135.78,180.69,180.64,2.83]
[1755809490175,135.78,180.69,180.65,7.7843757]
[1755809490376,2.96,180.68,180.66,4.9543757]
[1755809490584,2.96,180.68,180.65,2.83]
[1755809490883,3.86925599,180.71,180.67,2.83]
[1755809491179,2.96,180.7,180.68,4.95264357]
[1755809491383,2.96,180.7,180.67,2.83]
[1755809491575,2.96,180.7,180.68,4.94998288]
[1755809491778,2.96,180.7,180.67,2.83]
[1755809491975,2.96,180.7,180.68,4.94998288]
[1755809492181,2.96,180.68,180.61,2.83]
[1755809492376,2.96,180.66,180.62,4.95164693]
[1755809492583,2.96,180.64,180.63,4.95164693]
[1755809493480,6.82925599,180.67,180.63,7.78164693]
[1755809493678,135.76,180.66,180.64,4.95180724]
[1755809493881,135.76,180.66,180.6,2.83]
[1755809494082,2.96,180.65,180.61,7.78129647]
[1755809494283,135.76,180.66,180.63,2.83]
[1755809494488,135.76,180.66,180.64,4.95129647]
[1755809494787,138.72,180.66,180.59,2.83]
[1755809494987,138.72,180.66,180.6,4.94977112]
[1755809495187,135.76,180.66,180.61,4.95001582]
[1755809495385,3.86925599,180.65,180.62,4.95001582]
[1755809495589,2.96,180.64,180.63,4.95001582]
[1755809497982,3.52,180.64,180.54,2.83]
[1755809498190,3.52,180.64,180.55,4.95338998]
[1755809498191,2.96,180.58,180.55,4.95338998]
[1755809498388,139.60925599,180.6,180.56,7.7842482]
[1755809498690,139.60925599,180.6,180.58,2.83]
[1755809498691,135.74,180.6,180.58,2.83]
[1755809498888,2.96,180.64,180.6,2.83]
[1755809499091,2.96,180.63,180.61,4.9542482]
[1755809499288,2.96,180.63,180.6,2.83]
[1755809499289,2.96,180.63,180.62,4.9542482]
[1755809500290,2.96,180.65,180.62,4.9542482]
[1755809500491,2.96,180.65,180.63,4.95513513]
[1755809500793,2.96,180.65,180.64,4.95437772]
[1755809501692,139.60925599,180.66,180.64,4.95437772]
[1755809501893,135.74,180.66,180.62,2.83]
[1755809502193,135.74,180.66,180.63,4.95376776]
[1755809502388,13.04069377,180.68,180.65,2.83]
[1755809502597,2.96,180.68,180.66,4.95177871]
[1755809502894,2.96,180.68,180.62,2.83]
[1755809503095,2.96,180.68,180.63,4.95232259]
[1755809503296,2.96,180.68,180.64,7.78232259]
[1755809503495,2.96,180.68,180.65,4.95232259]
[1755809503695,2.96,180.68,180.64,2.83]
[1755809503696,2.96,180.67,180.66,4.95232259]
[1755809503895,2.96,180.67,180.61,2.83]
[1755809504097,2.96,180.67,180.62,4.95229078]
[1755809504298,2.96,180.67,180.63,2.83]
[1755809504494,2.96,180.68,180.64,4.95224982]
[1755809504695,2.96,180.66,180.59,2.83]
[1755809504895,2.96,180.66,180.6,4.95387578]
[1755809505091,2.96,180.65,180.61,4.95388169]
[1755809505297,2.96,180.63,180.62,4.95388169]
[1755809507601,2.96,180.63,180.62,4.9565976]
[1755809508699,2.96,180.63,180.55,2.83]
[1755809508700,9.17143778,180.63,180.55,2.83]
[1755809508895,2.96,180.59,180.56,4.95175937]
[1755809509098,2.96,180.59,180.57,4.95175937]